Workbook

Sheet Shift_1
A2: Date | B2: Start Time | C2: End Time | D2: Total | E2: Machine No. | F2: Machine Name | G2: Maximum power ( HOUR / KG) | H2: Average hourly output | I2: Acual Production rate ( HOUR / KG) | J2: Production rate per Shift | K2: Average hourly output | L2: Gm/ML | M2: Size MM | N2: Drawing | O2: ML X KG. | P2: ML.\ day | Q2: Color | R2: Shift | S2: Name of the Employee | T2: Name of Supervisor | U2: OR No. | V2: Comment | AF2: 0.05 | AG2: Black | AH2: منصور محمد منصور | AI2: محمد | AJ2: Machine number | AK2: Machine Name | AL2: Machine Type
A3: =IF(E3="","",IF(A3="",TODAY(),A3)) -> 2019-02-18 | B3: 08:00:00 | C3: 09:00:00 | D3: =C3-B3+IF(B3>C3,1) -> 01:00:00 | E3: 1 | F3: =IFERROR(VLOOKUP(E3,$AJ$3:$AL$317,2,FALSE),"") -> Crosha COMEZ 2017 | G3: =IFERROR(VLOOKUP(E3,$AJ$3:$AL$317,3,FALSE),"") -> 17.5 | H3: =IFERROR(SUM(G3/7),"") -> 2.5 | J3: 15 | K3: =IFERROR(SUM(J3/C3),"") -> 40 | L3: 20 | M3: 0.06 | N3: eeee | O3: =IFERROR(ROUND(SUM(1000/L3),2),"") -> 50 | P3: =IFERROR(ROUND(SUM(J3*O3),2),"") -> 750 | Q3: Black | R3: 1 | S3: منصور محمد منصور | T3: محمود | U3: 2211 | V3: hhh | AF3: 0.06 | AG3: White | AH3: علي مراد حسن | AI3: محمود | AJ3: 1 | AK3: Crosha COMEZ 2017 | AL3: 17.5
A4: =IF(E4="","",IF(A4="",TODAY(),A4)) -> 2019-02-18 | B4: 10:30:00 | C4: 15:00:00 | D4: =C4-B4+IF(B4>C4,1) -> 04:30:00 | E4: 2 | F4: =IFERROR(VLOOKUP(E4,$AJ$3:$AL$317,2,FALSE),"") -> Crosha COMEZ 2017 | G4: =IFERROR(VLOOKUP(E4,$AJ$3:$AL$317,3,FALSE),"") -> 13.5 | H4: =IFERROR(SUM(G4/7),"") -> 1.928571429 | J4: 10 | K4: =IFERROR(SUM(#REF!/C4),"") ->  | L4: 10 | M4: 0.07 | N4: hhh | O4: =IFERROR(ROUND(SUM(1000/L4),2),"") -> 100 | P4: =IFERROR(ROUND(SUM(#REF!*O4),2),"") ->  | Q4: Black&White | R4: 1 | S4: ابراهيم محمود ابراهيم | T4: محمود | U4: 1111 | AF4: 0.07 | AG4: Black&White | AH4: ابراهيم محمود ابراهيم | AI4: اسامة | AJ4: 2 | AK4: Crosha COMEZ 2017 | AL4: 13.5
A5: 2019-02-18 | B5: 09:30:00 | C5: 16:30:00 | D5: 07:00:00 | E5: 5 | J5: 8 | K5: =IFERROR(SUM(#REF!/C5),"") ->  | L5: 8 | M5: 0.06 | N5: o | O5: 125 | P5: =IFERROR(ROUND(SUM(#REF!*O5),2),"") ->  | Q5: White | R5: 1 | S5: دينا مجدي ابراهيم | T5: محمود | U5: 999 | AF5: 0.08 | AG5: A prominent Black | AH5: مسعد رمزي مسعد | AJ5: 3 | AK5: Crosha F.COLLIC 1996 | AL5: 10.5
C6: ↓ | H6: ↓ | J6: 0.09 | K6: ↓ | L6: عادل عزمي شنودة | N6: 4 | O6: Crosha F.COLLIC 1997 | P6: 9.45
B7: محتاج الوقت الاخير يكون 4.30 ولايكتب 16:30 | F7: محتاج اقسم عدد الكيلوات على عدد الساعات والناتج رقم صحيح | J7: محتاج اقسم عدد الكيلوات على عدد الساعات والناتج رقم صحيح | N7: 5 | O7: Crosha F.COLLIC 1996 | P7: 9.1
J8: 0.11 | L8: السيد محمد عبد العال | N8: 6 | O8: Crosha
J9: 0.12 | L9: عادل سيف الله السيد | N9: 7 | O9: Crosha
J10: 0.13 | L10: خالد السيد عبد القادر | N10: 8 | O10: Crosha
J11: 0.14 | L11: عادل صادق بشير | N11: 9 | O11: Crosha
J12: 0.15 | L12: روماني عطية حبشي | N12: 10 | O12: Crosha
J13: 0.16 | L13: احمد صادق توفيق | N13: 11 | O13: Crosha
J14: 0.17 | L14: دينا مجدي ابراهيم | N14: 12 | O14: Crosha
J15: 0.18 | L15: علي فرج على محمد | N15: 13 | O15: Crosha
J16: 0.19 | L16: بوسي السيد عبد المنعم | N16: 14 | O16: Crosha
J17: 0.2 | L17: محمد محمد عبد الوهاب | N17: 15 | O17: Crosha
J18: 0.21 | L18: سعيد الليثي جاب الله | N18: 16 | O18: Crosha
J19: 0.22 | L19: احمد عبد الظاهر | N19: 17 | O19: Crosha
J20: 0.23 | L20: مصطفى عبد النبي مصطفى | N20: 18 | O20: Crosha
J21: 0.24 | L21: ابراهيم صبحي محمد السيد | N21: 19 | O21: Crosha
J22: 0.25 | L22: خميس حسن حسنين | N22: 20 | O22: Crosha
J23: 0.26 | L23: محمد حسني حسن | N23: 21 | O23: Crosha
J24: 0.27 | L24: محمد عادل محمد محمد | N24: 22 | O24: Crosha
J25: 0.28 | L25: السيد عبد الحميد اسماعيل | N25: 23 | O25: Crosha
J26: 0.29 | L26: ابراهيم محمد فتوح | N26: 24 | O26: Crosha
J27: 0.3 | L27: عمرو محمد عبد الجليل | N27: 25 | O27: Crosha
J28: 0.31 | L28: خالد مصطفى العوضي | N28: 26 | O28: Crosha
J29: 0.32 | L29: حمادة احمد على النجار | N29: 27 | O29: Crosha
J30: 0.33 | L30: عاطف وليم لبيب | N30: 28 | O30: Crosha
J31: 0.34 | L31: عادل وليم نبيل | N31: 29 | O31: Crosha
J32: 0.35 | L32: بيشوي عزت شفيق | N32: 30 | O32: Crosha
J33: 0.36 | L33: محمد يحيى محمود | N33: 31 | O33: Crosha
J34: 0.37 | L34: احمد رمضان احمد | N34: 32 | O34: Crosha
J35: 0.38 | N35: 33 | O35: Crosha
J36: 0.39 | N36: 34 | O36: Crosha
J37: 0.4 | N37: 35 | O37: Crosha
J38: 0.41 | N38: 36 | O38: Crosha
J39: 0.42 | N39: 37 | O39: Crosha
J40: 0.43 | N40: 38 | O40: Crosha
J41: 0.44 | N41: 39 | O41: Crosha
J42: 0.45 | N42: 40 | O42: Crosha
J43: 0.46 | N43: 41 | O43: Crosha
J44: 0.47 | N44: 42 | O44: Crosha
J45: 0.48 | N45: 43 | O45: Crosha
J46: 0.49 | N46: 44 | O46: Crosha
J47: 0.5 | N47: 45 | O47: Crosha
J48: 0.51 | N48: 46 | O48: Crosha
J49: 0.52 | N49: 47 | O49: Crosha
J50: 0.53 | N50: 48 | O50: Crosha
J51: 0.54 | N51: 49 | O51: Crosha
J52: 0.55 | N52: 50 | O52: Crosha
J53: 0.56 | N53: 51 | O53: Crosha
J54: 0.57 | N54: 52 | O54: Crosha
J55: 0.58 | N55: 53 | O55: Crosha
J56: 0.59 | N56: 54 | O56: Crosha
J57: 0.6 | N57: 55 | O57: Crosha
J58: 0.61 | N58: 56 | O58: Crosha
J59: 0.62 | N59: 57 | O59: Crosha
J60: 0.63 | N60: 58 | O60: Crosha
J61: 0.64 | N61: 59 | O61: Crosha
J62: 0.65 | N62: 60 | O62: Crosha
J63: 0.66 | N63: 61 | O63: Crosha
J64: 0.67 | N64: 62 | O64: Crosha
J65: 0.68 | N65: 63 | O65: Crosha
J66: 0.69 | N66: 64 | O66: Crosha
J67: 0.7 | N67: 65 | O67: Crosha
J68: 0.71 | N68: 66 | O68: Crosha
J69: 0.72 | N69: 67 | O69: Crosha
J70: 0.73 | N70: 68 | O70: Crosha
J71: 0.74 | N71: 69 | O71: Crosha
J72: 0.75 | N72: 70 | O72: Crosha
J73: 0.76 | N73: 71 | O73: Crosha
J74: 0.77 | N74: 72 | O74: Crosha
J75: 0.78 | N75: 73 | O75: Crosha
J76: 0.79 | N76: 74 | O76: Crosha
J77: 0.8 | N77: 75 | O77: Crosha
J78: 0.81 | N78: 76 | O78: Crosha
J79: 0.82 | N79: 77 | O79: Crosha
J80: 0.83 | N80: 78 | O80: Crosha
J81: 0.84 | N81: 79 | O81: Crosha
J82: 0.85 | N82: 80 | O82: Crosha
J83: 0.86 | N83: 81 | O83: Crosha
J84: 0.87 | N84: 82 | O84: Crosha
J85: 0.88 | N85: 83 | O85: Crosha
J86: 0.89 | N86: 84 | O86: Crosha
J87: 0.9 | N87: 85 | O87: Crosha
J88: 0.91 | N88: 86 | O88: Crosha
J89: 0.92 | N89: 87 | O89: Crosha
J90: 0.93 | N90: 88 | O90: Crosha
J91: 0.94 | N91: 89 | O91: Crosha
J92: 0.95 | N92: 90 | O92: Crosha
J93: 0.96 | N93: 91 | O93: Crosha
J94: 0.97 | N94: 92 | O94: Crosha
J95: 0.98 | N95: 93 | O95: Crosha
J96: 0.99 | N96: 94 | O96: Crosha
J97: 1 | N97: 95 | O97: Crosha
J98: 1.01 | N98: 96 | O98: Crosha
J99: 1.02 | N99: 97 | O99: Crosha
J100: 1.03 | N100: 98 | O100: Crosha
J101: 1.04 | N101: 99 | O101: Crosha
J102: 1.05 | N102: 100 | O102: Crosha
J103: 1.06 | N103: 101 | O103: Jakar - MULLER 2017 | P103: 3.91
J104: 1.07 | N104: 102 | O104: Jakar - MULLER 2017 | P104: 5.94
J105: 1.08 | N105: 103 | O105: Jakar
J106: 1.09 | N106: 104 | O106: Jakar
J107: 1.1 | N107: 105 | O107: Jakar
J108: 1.11 | N108: 106 | O108: Jakar
J109: 1.12 | N109: 107 | O109: Jakar
J110: 1.13 | N110: 108 | O110: Jakar
J111: 1.14 | N111: 109 | O111: Jakar
J112: 1.15 | N112: 110 | O112: Jakar
J113: 1.16 | N113: 111 | O113: Jakar
J114: 1.17 | N114: 112 | O114: Jakar
J115: 1.18 | N115: 113 | O115: Jakar
J116: 1.19 | N116: 114 | O116: Jakar
J117: 1.2 | N117: 115 | O117: Jakar
J118: 1.21 | N118: 116 | O118: Jakar
J119: 1.22 | N119: 117 | O119: Jakar
J120: 1.23 | N120: 118 | O120: Jakar
J121: 1.24 | N121: 119 | O121: Jakar
J122: 1.25 | N122: 120 | O122: Jakar
J123: 1.26 | N123: 121 | O123: Jakar
J124: 1.27 | N124: 122 | O124: Jakar
J125: 1.28 | N125: 123 | O125: Jakar
J126: 1.29 | N126: 124 | O126: Jakar
J127: 1.3 | N127: 125 | O127: Jakar
J128: 1.31 | N128: 126 | O128: Jakar
J129: 1.32 | N129: 127 | O129: Jakar
J130: 1.33 | N130: 128 | O130: Jakar
J131: 1.34 | N131: 129 | O131: Jakar
J132: 1.35 | N132: 130 | O132: Jakar
J133: 1.36 | N133: 131 | O133: Jakar
J134: 1.37 | N134: 132 | O134: Jakar
J135: 1.38 | N135: 133 | O135: Jakar
J136: 1.39 | N136: 134 | O136: Jakar
J137: 1.4 | N137: 135 | O137: Jakar
J138: 1.41 | N138: 136 | O138: Jakar
J139: 1.42 | N139: 137 | O139: Jakar
J140: 1.43 | N140: 138 | O140: Jakar
J141: 1.44 | N141: 139 | O141: Jakar
J142: 1.45 | N142: 140 | O142: Jakar
J143: 1.46 | N143: 141 | O143: Jakar
J144: 1.47 | N144: 142 | O144: Jakar
J145: 1.48 | N145: 143 | O145: Jakar
J146: 1.49 | N146: 144 | O146: Jakar
J147: 1.5 | N147: 145 | O147: Jakar
J148: 1.51 | N148: 146 | O148: Jakar
J149: 1.52 | N149: 147 | O149: Jakar
J150: 1.53 | N150: 148 | O150: Jakar
J151: 1.54 | N151: 149 | O151: Jakar
J152: 1.55 | N152: 150 | O152: Jakar
J153: 1.56 | N153: 151 | O153: Jakar
J154: 1.57 | N154: 152 | O154: Jakar
J155: 1.58 | N155: 153 | O155: Jakar
J156: 1.59 | N156: 154 | O156: Jakar
J157: 1.6 | N157: 155 | O157: Jakar
J158: 1.61 | N158: 156 | O158: Jakar
J159: 1.62 | N159: 157 | O159: Jakar
J160: 1.63 | N160: 158 | O160: Jakar
J161: 1.64 | N161: 159 | O161: Jakar
J162: 1.65 | N162: 160 | O162: Jakar
J163: 1.66 | N163: 161 | O163: Jakar
J164: 1.67 | N164: 162 | O164: Jakar
J165: 1.68 | N165: 163 | O165: Jakar
J166: 1.69 | N166: 164 | O166: Jakar
J167: 1.7 | N167: 165 | O167: Jakar
J168: 1.71 | N168: 166 | O168: Jakar
J169: 1.72 | N169: 167 | O169: Jakar
J170: 1.73 | N170: 168 | O170: Jakar
J171: 1.74 | N171: 169 | O171: Jakar
J172: 1.75 | N172: 170 | O172: Jakar
J173: 1.76 | N173: 171 | O173: Jakar
J174: 1.77 | N174: 172 | O174: Jakar
J175: 1.78 | N175: 173 | O175: Jakar
J176: 1.79 | N176: 174 | O176: Jakar
J177: 1.8 | N177: 175 | O177: Jakar
J178: 1.81 | N178: 176 | O178: Jakar
J179: 1.82 | N179: 177 | O179: Jakar
J180: 1.83 | N180: 178 | O180: Jakar
J181: 1.84 | N181: 179 | O181: Jakar
J182: 1.85 | N182: 180 | O182: Jakar
J183: 1.86 | N183: 181 | O183: Jakar
J184: 1.87 | N184: 182 | O184: Jakar
J185: 1.88 | N185: 183 | O185: Jakar
J186: 1.89 | N186: 184 | O186: Jakar
J187: 1.9 | N187: 185 | O187: Jakar
J188: 1.91 | N188: 186 | O188: Jakar
J189: 1.92 | N189: 187 | O189: Jakar
J190: 1.93 | N190: 188 | O190: Jakar
J191: 1.94 | N191: 189 | O191: Jakar
J192: 1.95 | N192: 190 | O192: Jakar
J193: 1.96 | N193: 191 | O193: Jakar
J194: 1.97 | N194: 192 | O194: Jakar
J195: 1.98 | N195: 193 | O195: Jakar
J196: 1.99 | N196: 194 | O196: Jakar
J197: 2 | N197: 195 | O197: Jakar
J198: 2.01 | N198: 196 | O198: Jakar
J199: 2.02 | N199: 197 | O199: Jakar
J200: 2.03 | N200: 198 | O200: Jakar
J201: 2.04 | N201: 199 | O201: Jakar
... 396 more rows

Sheet Shift_2
A2: Date | B2: Start Time | C2: End Time | D2: Total | E2: Machine No. | F2: Machine Name | G2: Maximum power | H2: Production rate per Shift | I2: Average hourly output | J2: Average hourly output | K2: Gm/ML | L2: Size MM | M2: Drawing | N2: KG.\ day | O2: ML X KG. | P2: ML.\ day | Q2: Color | R2: Shift | S2: Name of the employee | T2: Name of Supervisor | U2: OR No. | V2: Comment | AJ2: 1 | AK2: Crosha COMEZ 2017 | AL2: 15 | AM2: 0.05 | AN2: Black | AO2: منصور محمد منصور | AP2: محمد
A3: =IF(E3="","",IF(A3="",TODAY(),A3)) -> 2019-02-18 | B3: 08:30:00 | C3: 16:30:00 | D3: =C3-B3+IF(B3>C3,1) -> 08:00:00 | E3: 5 | F3: =IFERROR(VLOOKUP(E3,$AJ$2:$AL$3155,2,FALSE),"") -> Crosha F.COLLIC 1996 | G3: =IFERROR(VLOOKUP(E3,$AJ$2:$AL$3155,3,FALSE),"") -> 7.8 | H3: 5 | I3: =IFERROR(SUM(G3/7),"") -> 1.114285714 | J3: =IFERROR(SUM(N3/C3),"") -> 7.272727273 | K3: 20 | L3: 0.07 | M3: uuu | N3: 5 | O3: =IFERROR(ROUND(SUM(1000/K3),2),"") -> 50 | P3: =IFERROR(ROUND(SUM(N3*O3),2),"") -> 250 | Q3: A prominent White | R3: 2 | S3: علي مراد حسن | T3: اسامة | U3: 6666 | AJ3: 2 | AK3: Crosha COMEZ 2017 | AL3: 11.5 | AM3: 0.06 | AN3: White | AO3: علي مراد حسن | AP3: محمود
A4: =IF(E4="","",IF(A4="",TODAY(),A4)) -> 2019-02-18 | B4: 11:00:00 | C4: 14:30:00 | D4: =C4-B4+IF(B4>C4,1) -> 03:30:00 | E4: 1 | F4: =IFERROR(VLOOKUP(E4,$AJ$2:$AL$3155,2,FALSE),"") -> Crosha COMEZ 2017 | G4: =IFERROR(VLOOKUP(E4,$AJ$2:$AL$3155,3,FALSE),"") -> 15 | H4: 18 | I4: =IFERROR(SUM(G4/7),"") -> 2.142857143 | J4: =IFERROR(SUM(N4/C4),"") -> 29.79310345 | K4: 22 | L4: 0.09 | M4: tt | N4: 18 | O4: =IFERROR(ROUND(SUM(1000/K4),2),"") -> 45.45 | P4: =IFERROR(ROUND(SUM(N4*O4),2),"") -> 818.1 | Q4: Black | R4: 2 | S4: عادل عزمي شنودة | T4: اسامة | U4: 5454 | AJ4: 3 | AK4: Crosha F.COLLIC 1996 | AL4: 9 | AM4: 0.07 | AN4: Black&White | AO4: ابراهيم محمود ابراهيم | AP4: اسامة
D5: 00:00:00 | R5: 2 | AJ5: 4 | AK5: Crosha F.COLLIC 1997 | AL5: 8.1 | AM5: 0.08 | AN5: A prominent Black | AO5: مسعد رمزي مسعد
D6: 00:00:00 | R6: 2 | AJ6: 5 | AK6: Crosha F.COLLIC 1996 | AL6: 7.8 | AM6: 0.09 | AN6: A prominent White | AO6: عادل عزمي شنودة
D7: 00:00:00 | R7: 2 | AJ7: 6 | AK7: Crosha | AM7: 0.1 | AO7: صبحي محمد محمود
D8: 00:00:00 | R8: 2 | AJ8: 7 | AK8: Crosha | AM8: 0.11 | AO8: السيد محمد عبد العال
D9: 00:00:00 | R9: 2 | AJ9: 8 | AK9: Crosha | AM9: 0.12 | AO9: عادل سيف الله السيد
D10: 00:00:00 | R10: 2 | AJ10: 9 | AK10: Crosha | AM10: 0.13 | AO10: خالد السيد عبد القادر
D11: 00:00:00 | R11: 2 | AJ11: 10 | AK11: Crosha | AM11: 0.14 | AO11: عادل صادق بشير
D12: 00:00:00 | R12: 2 | AJ12: 11 | AK12: Crosha | AM12: 0.15 | AO12: روماني عطية حبشي
D13: 00:00:00 | R13: 2 | AJ13: 12 | AK13: Crosha | AM13: 0.16 | AO13: احمد صادق توفيق
D14: 00:00:00 | R14: 2 | AJ14: 13 | AK14: Crosha | AM14: 0.17 | AO14: دينا مجدي ابراهيم
D15: 00:00:00 | R15: 2 | AJ15: 14 | AK15: Crosha | AM15: 0.18 | AO15: علي فرج على محمد
D16: 00:00:00 | R16: 2 | AJ16: 15 | AK16: Crosha | AM16: 0.19 | AO16: بوسي السيد عبد المنعم
D17: 00:00:00 | R17: 2 | AJ17: 16 | AK17: Crosha | AM17: 0.2 | AO17: محمد محمد عبد الوهاب
D18: 00:00:00 | R18: 2 | AJ18: 17 | AK18: Crosha | AM18: 0.21 | AO18: سعيد الليثي جاب الله
D19: 00:00:00 | R19: 2 | AJ19: 18 | AK19: Crosha | AM19: 0.22 | AO19: احمد عبد الظاهر
D20: 00:00:00 | R20: 2 | AJ20: 19 | AK20: Crosha | AM20: 0.23 | AO20: مصطفى عبد النبي مصطفى
D21: 00:00:00 | R21: 2 | AJ21: 20 | AK21: Crosha | AM21: 0.24 | AO21: ابراهيم صبحي محمد السيد
D22: 00:00:00 | R22: 2 | AJ22: 21 | AK22: Crosha | AM22: 0.25 | AO22: خميس حسن حسنين
D23: 00:00:00 | R23: 2 | AJ23: 22 | AK23: Crosha | AM23: 0.26 | AO23: محمد حسني حسن
D24: 00:00:00 | R24: 2 | AJ24: 23 | AK24: Crosha | AM24: 0.27 | AO24: محمد عادل محمد محمد
D25: 00:00:00 | R25: 2 | AJ25: 24 | AK25: Crosha | AM25: 0.28 | AO25: السيد عبد الحميد اسماعيل
D26: 00:00:00 | R26: 2 | AJ26: 25 | AK26: Crosha | AM26: 0.29 | AO26: ابراهيم محمد فتوح
D27: 00:00:00 | R27: 2 | AJ27: 26 | AK27: Crosha | AM27: 0.3 | AO27: عمرو محمد عبد الجليل
D28: 00:00:00 | R28: 2 | AJ28: 27 | AK28: Crosha | AM28: 0.31 | AO28: خالد مصطفى العوضي
D29: 00:00:00 | R29: 2 | AJ29: 28 | AK29: Crosha | AM29: 0.32 | AO29: حمادة احمد على النجار
D30: 00:00:00 | R30: 2 | AJ30: 29 | AK30: Crosha | AM30: 0.33 | AO30: عاطف وليم لبيب
D31: 00:00:00 | R31: 2 | AJ31: 30 | AK31: Crosha | AM31: 0.34 | AO31: عادل وليم نبيل
D32: 00:00:00 | R32: 2 | AJ32: 31 | AK32: Crosha | AM32: 0.35 | AO32: بيشوي عزت شفيق
D33: 00:00:00 | R33: 2 | AJ33: 32 | AK33: Crosha | AM33: 0.36 | AO33: محمد يحيى محمود
D34: 00:00:00 | R34: 2 | AJ34: 33 | AK34: Crosha | AM34: 0.37 | AO34: احمد رمضان احمد
D35: 00:00:00 | R35: 2 | AJ35: 34 | AK35: Crosha | AM35: 0.38
D36: 00:00:00 | R36: 2 | AJ36: 35 | AK36: Crosha | AM36: 0.39
D37: 00:00:00 | R37: 2 | AJ37: 36 | AK37: Crosha | AM37: 0.4
D38: 00:00:00 | R38: 2 | AJ38: 37 | AK38: Crosha | AM38: 0.41
D39: 00:00:00 | R39: 2 | AJ39: 38 | AK39: Crosha | AM39: 0.42
D40: 00:00:00 | R40: 2 | AJ40: 39 | AK40: Crosha | AM40: 0.43
D41: 00:00:00 | R41: 2 | AJ41: 40 | AK41: Crosha | AM41: 0.44
D42: 00:00:00 | R42: 2 | AJ42: 41 | AK42: Crosha | AM42: 0.45
D43: 00:00:00 | R43: 2 | AJ43: 42 | AK43: Crosha | AM43: 0.46
D44: 00:00:00 | R44: 2 | AJ44: 43 | AK44: Crosha | AM44: 0.47
D45: 00:00:00 | R45: 2 | AJ45: 44 | AK45: Crosha | AM45: 0.48
D46: 00:00:00 | R46: 2 | AJ46: 45 | AK46: Crosha | AM46: 0.49
D47: 00:00:00 | R47: 2 | AJ47: 46 | AK47: Crosha | AM47: 0.5
D48: 00:00:00 | R48: 2 | AJ48: 47 | AK48: Crosha | AM48: 0.51
D49: 00:00:00 | R49: 2 | AJ49: 48 | AK49: Crosha | AM49: 0.52
D50: 00:00:00 | R50: 2 | AJ50: 49 | AK50: Crosha | AM50: 0.53
D51: 00:00:00 | R51: 2 | AJ51: 50 | AK51: Crosha | AM51: 0.54
D52: 00:00:00 | R52: 2 | AJ52: 51 | AK52: Crosha | AM52: 0.55
D53: 00:00:00 | R53: 2 | AJ53: 52 | AK53: Crosha | AM53: 0.56
D54: 00:00:00 | R54: 2 | AJ54: 53 | AK54: Crosha | AM54: 0.57
D55: 00:00:00 | R55: 2 | AJ55: 54 | AK55: Crosha | AM55: 0.58
D56: 00:00:00 | R56: 2 | AJ56: 55 | AK56: Crosha | AM56: 0.59
D57: 00:00:00 | R57: 2 | AJ57: 56 | AK57: Crosha | AM57: 0.6
D58: 00:00:00 | R58: 2 | AJ58: 57 | AK58: Crosha | AM58: 0.61
D59: 00:00:00 | R59: 2 | AJ59: 58 | AK59: Crosha | AM59: 0.62
D60: 00:00:00 | R60: 2 | AJ60: 59 | AK60: Crosha | AM60: 0.63
D61: 00:00:00 | R61: 2 | AJ61: 60 | AK61: Crosha | AM61: 0.64
D62: 00:00:00 | R62: 2 | AJ62: 61 | AK62: Crosha | AM62: 0.65
D63: 00:00:00 | R63: 2 | AJ63: 62 | AK63: Crosha | AM63: 0.66
D64: 00:00:00 | R64: 2 | AJ64: 63 | AK64: Crosha | AM64: 0.67
D65: 00:00:00 | R65: 2 | AJ65: 64 | AK65: Crosha | AM65: 0.68
D66: 00:00:00 | R66: 2 | AJ66: 65 | AK66: Crosha | AM66: 0.69
D67: 00:00:00 | R67: 2 | AJ67: 66 | AK67: Crosha | AM67: 0.7
A68: =IF(E68="","",IF(A68="",TODAY(),A68)) ->  | D68: =C68-B68+IF(B68>C68,1) -> 00:00:00 | F68: =IFERROR(VLOOKUP(E68,$AJ$2:$AL$3155,2,FALSE),"") ->  | G68: =IFERROR(VLOOKUP(E68,$AJ$2:$AL$3155,3,FALSE),"") ->  | I68: =IFERROR(SUM(G68/7),"") ->  | J68: =IFERROR(SUM(N68/C68),"") ->  | O68: =IFERROR(ROUND(SUM(1000/K68),2),"") ->  | P68: =IFERROR(ROUND(SUM(N68*O68),2),"") ->  | R68: 2 | AJ68: 67 | AK68: Crosha | AM68: 0.71
D69: 00:00:00 | R69: 2 | AJ69: 68 | AK69: Crosha | AM69: 0.72
D70: 00:00:00 | R70: 2 | AJ70: 69 | AK70: Crosha | AM70: 0.73
D71: 00:00:00 | R71: 2 | AJ71: 70 | AK71: Crosha | AM71: 0.74
D72: 00:00:00 | R72: 2 | AJ72: 71 | AK72: Crosha | AM72: 0.75
D73: 00:00:00 | R73: 2 | AJ73: 72 | AK73: Crosha | AM73: 0.76
D74: 00:00:00 | R74: 2 | AJ74: 73 | AK74: Crosha | AM74: 0.77
D75: 00:00:00 | R75: 2 | AJ75: 74 | AK75: Crosha | AM75: 0.78
D76: 00:00:00 | R76: 2 | AJ76: 75 | AK76: Crosha | AM76: 0.79
D77: 00:00:00 | R77: 2 | AJ77: 76 | AK77: Crosha | AM77: 0.8
D78: 00:00:00 | R78: 2 | AJ78: 77 | AK78: Crosha | AM78: 0.81
D79: 00:00:00 | R79: 2 | AJ79: 78 | AK79: Crosha | AM79: 0.82
D80: 00:00:00 | R80: 2 | AJ80: 79 | AK80: Crosha | AM80: 0.83
D81: 00:00:00 | R81: 2 | AJ81: 80 | AK81: Crosha | AM81: 0.84
D82: 00:00:00 | R82: 2 | AJ82: 81 | AK82: Crosha | AM82: 0.85
D83: 00:00:00 | R83: 2 | AJ83: 82 | AK83: Crosha | AM83: 0.86
D84: 00:00:00 | R84: 2 | AJ84: 83 | AK84: Crosha | AM84: 0.87
D85: 00:00:00 | R85: 2 | AJ85: 84 | AK85: Crosha | AM85: 0.88
D86: 00:00:00 | R86: 2 | AJ86: 85 | AK86: Crosha | AM86: 0.89
D87: 00:00:00 | R87: 2 | AJ87: 86 | AK87: Crosha | AM87: 0.9
D88: 00:00:00 | R88: 2 | AJ88: 87 | AK88: Crosha | AM88: 0.91
D89: 00:00:00 | R89: 2 | AJ89: 88 | AK89: Crosha | AM89: 0.92
D90: 00:00:00 | R90: 2 | AJ90: 89 | AK90: Crosha | AM90: 0.93
D91: 00:00:00 | R91: 2 | AJ91: 90 | AK91: Crosha | AM91: 0.94
D92: 00:00:00 | R92: 2 | AJ92: 91 | AK92: Crosha | AM92: 0.95
D93: 00:00:00 | R93: 2 | AJ93: 92 | AK93: Crosha | AM93: 0.96
D94: 00:00:00 | R94: 2 | AJ94: 93 | AK94: Crosha | AM94: 0.97
D95: 00:00:00 | R95: 2 | AJ95: 94 | AK95: Crosha | AM95: 0.98
D96: 00:00:00 | R96: 2 | AJ96: 95 | AK96: Crosha | AM96: 0.99
D97: 00:00:00 | R97: 2 | AJ97: 96 | AK97: Crosha | AM97: 1
D98: 00:00:00 | R98: 2 | AJ98: 97 | AK98: Crosha | AM98: 1.01
D99: 00:00:00 | R99: 2 | AJ99: 98 | AK99: Crosha | AM99: 1.02
D100: 00:00:00 | R100: 2 | AJ100: 99 | AK100: Crosha | AM100: 1.03
D101: 00:00:00 | R101: 2 | AJ101: 100 | AK101: Crosha | AM101: 1.04
D102: 00:00:00 | R102: 2 | AJ102: 101 | AK102: Jakar - MULLER 2017 | AL102: 3.35 | AM102: 1.05
D103: 00:00:00 | R103: 2 | AJ103: 102 | AK103: Jakar - MULLER 2017 | AL103: 5.01 | AM103: 1.06
D104: 00:00:00 | R104: 2 | AJ104: 103 | AK104: Jakar | AM104: 1.07
D105: 00:00:00 | R105: 2 | AJ105: 104 | AK105: Jakar | AM105: 1.08
D106: 00:00:00 | R106: 2 | AJ106: 105 | AK106: Jakar | AM106: 1.09
D107: 00:00:00 | R107: 2 | AJ107: 106 | AK107: Jakar | AM107: 1.1
D108: 00:00:00 | R108: 2 | AJ108: 107 | AK108: Jakar | AM108: 1.11
D109: 00:00:00 | R109: 2 | AJ109: 108 | AK109: Jakar | AM109: 1.12
D110: 00:00:00 | R110: 2 | AJ110: 109 | AK110: Jakar | AM110: 1.13
D111: 00:00:00 | R111: 2 | AJ111: 110 | AK111: Jakar | AM111: 1.14
D112: 00:00:00 | R112: 2 | AJ112: 111 | AK112: Jakar | AM112: 1.15
D113: 00:00:00 | R113: 2 | AJ113: 112 | AK113: Jakar | AM113: 1.16
D114: 00:00:00 | R114: 2 | AJ114: 113 | AK114: Jakar | AM114: 1.17
D115: 00:00:00 | R115: 2 | AJ115: 114 | AK115: Jakar | AM115: 1.18
D116: 00:00:00 | R116: 2 | AJ116: 115 | AK116: Jakar | AM116: 1.19
D117: 00:00:00 | R117: 2 | AJ117: 116 | AK117: Jakar | AM117: 1.2
D118: 00:00:00 | R118: 2 | AJ118: 117 | AK118: Jakar | AM118: 1.21
D119: 00:00:00 | R119: 2 | AJ119: 118 | AK119: Jakar | AM119: 1.22
D120: 00:00:00 | R120: 2 | AJ120: 119 | AK120: Jakar | AM120: 1.23
D121: 00:00:00 | R121: 2 | AJ121: 120 | AK121: Jakar | AM121: 1.24
D122: 00:00:00 | R122: 2 | AJ122: 121 | AK122: Jakar | AM122: 1.25
D123: 00:00:00 | R123: 2 | AJ123: 122 | AK123: Jakar | AM123: 1.26
D124: 00:00:00 | R124: 2 | AJ124: 123 | AK124: Jakar | AM124: 1.27
D125: 00:00:00 | R125: 2 | AJ125: 124 | AK125: Jakar | AM125: 1.28
D126: 00:00:00 | R126: 2 | AJ126: 125 | AK126: Jakar | AM126: 1.29
D127: 00:00:00 | R127: 2 | AJ127: 126 | AK127: Jakar | AM127: 1.3
D128: 00:00:00 | R128: 2 | AJ128: 127 | AK128: Jakar | AM128: 1.31
D129: 00:00:00 | R129: 2 | AJ129: 128 | AK129: Jakar | AM129: 1.32
D130: 00:00:00 | R130: 2 | AJ130: 129 | AK130: Jakar | AM130: 1.33
D131: 00:00:00 | R131: 2 | AJ131: 130 | AK131: Jakar | AM131: 1.34
A132: =IF(E132="","",IF(A132="",TODAY(),A132)) ->  | D132: =C132-B132+IF(B132>C132,1) -> 00:00:00 | F132: =IFERROR(VLOOKUP(E132,$AJ$2:$AL$3155,2,FALSE),"") ->  | G132: =IFERROR(VLOOKUP(E132,$AJ$2:$AL$3155,3,FALSE),"") ->  | I132: =IFERROR(SUM(G132/7),"") ->  | J132: =IFERROR(SUM(N132/C132),"") ->  | O132: =IFERROR(ROUND(SUM(1000/K132),2),"") ->  | P132: =IFERROR(ROUND(SUM(N132*O132),2),"") ->  | R132: 2 | AJ132: 131 | AK132: Jakar | AM132: 1.35
D133: 00:00:00 | R133: 2 | AJ133: 132 | AK133: Jakar | AM133: 1.36
D134: 00:00:00 | R134: 2 | AJ134: 133 | AK134: Jakar | AM134: 1.37
D135: 00:00:00 | R135: 2 | AJ135: 134 | AK135: Jakar | AM135: 1.38
D136: 00:00:00 | R136: 2 | AJ136: 135 | AK136: Jakar | AM136: 1.39
D137: 00:00:00 | R137: 2 | AJ137: 136 | AK137: Jakar | AM137: 1.4
D138: 00:00:00 | R138: 2 | AJ138: 137 | AK138: Jakar | AM138: 1.41
D139: 00:00:00 | R139: 2 | AJ139: 138 | AK139: Jakar | AM139: 1.42
D140: 00:00:00 | R140: 2 | AJ140: 139 | AK140: Jakar | AM140: 1.43
D141: 00:00:00 | R141: 2 | AJ141: 140 | AK141: Jakar | AM141: 1.44
D142: 00:00:00 | R142: 2 | AJ142: 141 | AK142: Jakar | AM142: 1.45
D143: 00:00:00 | R143: 2 | AJ143: 142 | AK143: Jakar | AM143: 1.46
D144: 00:00:00 | R144: 2 | AJ144: 143 | AK144: Jakar | AM144: 1.47
D145: 00:00:00 | R145: 2 | AJ145: 144 | AK145: Jakar | AM145: 1.48
D146: 00:00:00 | R146: 2 | AJ146: 145 | AK146: Jakar | AM146: 1.49
D147: 00:00:00 | R147: 2 | AJ147: 146 | AK147: Jakar | AM147: 1.5
D148: 00:00:00 | R148: 2 | AJ148: 147 | AK148: Jakar | AM148: 1.51
D149: 00:00:00 | R149: 2 | AJ149: 148 | AK149: Jakar | AM149: 1.52
D150: 00:00:00 | R150: 2 | AJ150: 149 | AK150: Jakar | AM150: 1.53
D151: 00:00:00 | R151: 2 | AJ151: 150 | AK151: Jakar | AM151: 1.54
D152: 00:00:00 | R152: 2 | AJ152: 151 | AK152: Jakar | AM152: 1.55
D153: 00:00:00 | R153: 2 | AJ153: 152 | AK153: Jakar | AM153: 1.56
D154: 00:00:00 | R154: 2 | AJ154: 153 | AK154: Jakar | AM154: 1.57
D155: 00:00:00 | R155: 2 | AJ155: 154 | AK155: Jakar | AM155: 1.58
D156: 00:00:00 | R156: 2 | AJ156: 155 | AK156: Jakar | AM156: 1.59
D157: 00:00:00 | R157: 2 | AJ157: 156 | AK157: Jakar | AM157: 1.6
D158: 00:00:00 | R158: 2 | AJ158: 157 | AK158: Jakar | AM158: 1.61
D159: 00:00:00 | R159: 2 | AJ159: 158 | AK159: Jakar | AM159: 1.62
D160: 00:00:00 | R160: 2 | AJ160: 159 | AK160: Jakar | AM160: 1.63
D161: 00:00:00 | R161: 2 | AJ161: 160 | AK161: Jakar | AM161: 1.64
D162: 00:00:00 | R162: 2 | AJ162: 161 | AK162: Jakar | AM162: 1.65
D163: 00:00:00 | R163: 2 | AJ163: 162 | AK163: Jakar | AM163: 1.66
D164: 00:00:00 | R164: 2 | AJ164: 163 | AK164: Jakar | AM164: 1.67
D165: 00:00:00 | R165: 2 | AJ165: 164 | AK165: Jakar | AM165: 1.68
D166: 00:00:00 | R166: 2 | AJ166: 165 | AK166: Jakar | AM166: 1.69
D167: 00:00:00 | R167: 2 | AJ167: 166 | AK167: Jakar | AM167: 1.7
D168: 00:00:00 | R168: 2 | AJ168: 167 | AK168: Jakar | AM168: 1.71
D169: 00:00:00 | R169: 2 | AJ169: 168 | AK169: Jakar | AM169: 1.72
D170: 00:00:00 | R170: 2 | AJ170: 169 | AK170: Jakar | AM170: 1.73
D171: 00:00:00 | R171: 2 | AJ171: 170 | AK171: Jakar | AM171: 1.74
D172: 00:00:00 | R172: 2 | AJ172: 171 | AK172: Jakar | AM172: 1.75
D173: 00:00:00 | R173: 2 | AJ173: 172 | AK173: Jakar | AM173: 1.76
D174: 00:00:00 | R174: 2 | AJ174: 173 | AK174: Jakar | AM174: 1.77
D175: 00:00:00 | R175: 2 | AJ175: 174 | AK175: Jakar | AM175: 1.78
D176: 00:00:00 | R176: 2 | AJ176: 175 | AK176: Jakar | AM176: 1.79
D177: 00:00:00 | R177: 2 | AJ177: 176 | AK177: Jakar | AM177: 1.8
D178: 00:00:00 | R178: 2 | AJ178: 177 | AK178: Jakar | AM178: 1.81
D179: 00:00:00 | R179: 2 | AJ179: 178 | AK179: Jakar | AM179: 1.82
D180: 00:00:00 | R180: 2 | AJ180: 179 | AK180: Jakar | AM180: 1.83
D181: 00:00:00 | R181: 2 | AJ181: 180 | AK181: Jakar | AM181: 1.84
D182: 00:00:00 | R182: 2 | AJ182: 181 | AK182: Jakar | AM182: 1.85
D183: 00:00:00 | R183: 2 | AJ183: 182 | AK183: Jakar | AM183: 1.86
D184: 00:00:00 | R184: 2 | AJ184: 183 | AK184: Jakar | AM184: 1.87
D185: 00:00:00 | R185: 2 | AJ185: 184 | AK185: Jakar | AM185: 1.88
D186: 00:00:00 | R186: 2 | AJ186: 185 | AK186: Jakar | AM186: 1.89
D187: 00:00:00 | R187: 2 | AJ187: 186 | AK187: Jakar | AM187: 1.9
D188: 00:00:00 | R188: 2 | AJ188: 187 | AK188: Jakar | AM188: 1.91
D189: 00:00:00 | R189: 2 | AJ189: 188 | AK189: Jakar | AM189: 1.92
D190: 00:00:00 | R190: 2 | AJ190: 189 | AK190: Jakar | AM190: 1.93
D191: 00:00:00 | R191: 2 | AJ191: 190 | AK191: Jakar | AM191: 1.94
D192: 00:00:00 | R192: 2 | AJ192: 191 | AK192: Jakar | AM192: 1.95
D193: 00:00:00 | R193: 2 | AJ193: 192 | AK193: Jakar | AM193: 1.96
D194: 00:00:00 | R194: 2 | AJ194: 193 | AK194: Jakar | AM194: 1.97
D195: 00:00:00 | R195: 2 | AJ195: 194 | AK195: Jakar | AM195: 1.98
A196: =IF(E196="","",IF(A196="",TODAY(),A196)) ->  | D196: =C196-B196+IF(B196>C196,1) -> 00:00:00 | F196: =IFERROR(VLOOKUP(E196,$AJ$2:$AL$3155,2,FALSE),"") ->  | G196: =IFERROR(VLOOKUP(E196,$AJ$2:$AL$3155,3,FALSE),"") ->  | I196: =IFERROR(SUM(G196/7),"") ->  | J196: =IFERROR(SUM(N196/C196),"") ->  | O196: =IFERROR(ROUND(SUM(1000/K196),2),"") ->  | P196: =IFERROR(ROUND(SUM(N196*O196),2),"") ->  | R196: 2 | AJ196: 195 | AK196: Jakar | AM196: 1.99
D197: 00:00:00 | R197: 2 | AJ197: 196 | AK197: Jakar | AM197: 2
D198: 00:00:00 | R198: 2 | AJ198: 197 | AK198: Jakar | AM198: 2.01
D199: 00:00:00 | R199: 2 | AJ199: 198 | AK199: Jakar | AM199: 2.02
D200: 00:00:00 | R200: 2 | AJ200: 199 | AK200: Jakar | AM200: 2.03
D201: 00:00:00 | R201: 2 | AJ201: 200 | AK201: Jakar | AM201: 2.04
... 1800 more rows

Sheet Shift_3
A2: Date | B2: Start Time | C2: End Time | D2: Total | E2: Machine No. | F2: Machine Name | G2: Maximum power | H2: Production rate per Shift | I2: Average hourly output | J2: Average hourly output | K2: Gm/ML | L2: Size MM | M2: Drawing | N2: KG.\ day | O2: ML X KG. | P2: ML.\ day | Q2: Color | R2: Shift | S2: Name of the employee | T2: Name of Supervisor | U2: OR No. | V2: Comment | AJ2: 1 | AK2: Crosha COMEZ 2017 | AL2: 20 | AM2: 0.05 | AN2: Black | AO2: منصور محمد منصور | AP2: محمد
A3: =IF(E3="","",IF(A3="",TODAY(),A3)) -> 2019-02-18 | B3: 11:30:00 | C3: 15:30:00 | D3: =C3-B3+IF(B3>C3,1) -> 04:00:00 | E3: 3 | F3: =IFERROR(VLOOKUP(E3,$AJ$2:$AL$3155,2,FALSE),"") -> Crosha F.COLLIC 1996 | G3: =IFERROR(VLOOKUP(E3,$AJ$2:$AL$3155,3,FALSE),"") -> 12 | H3: 13 | I3: =IFERROR(SUM(G3/7),"") -> 1.714285714 | J3: =IFERROR(SUM(N3/C3),"") -> 20.12903226 | K3: 5 | L3: 0.08 | M3: gfd | N3: 13 | O3: =IFERROR(ROUND(SUM(1000/K3),2),"") -> 200 | P3: =IFERROR(ROUND(SUM(N3*O3),2),"") -> 2600 | Q3: White | R3: 3 | S3: صبحي محمد محمود | T3: محمود | U3: 1000 | AJ3: 2 | AK3: Crosha COMEZ 2017 | AL3: 15.2 | AM3: 0.06 | AN3: White | AO3: علي مراد حسن | AP3: محمود
A4: =IF(E4="","",IF(A4="",TODAY(),A4)) -> 2019-02-18 | B4: 09:00:00 | C4: 16:00:00 | D4: =C4-B4+IF(B4>C4,1) -> 07:00:00 | E4: 5 | F4: =IFERROR(VLOOKUP(E4,$AJ$2:$AL$3155,2,FALSE),"") -> Crosha F.COLLIC 1996 | G4: =IFERROR(VLOOKUP(E4,$AJ$2:$AL$3155,3,FALSE),"") -> 10.4 | H4: 11 | I4: =IFERROR(SUM(G4/7),"") -> 1.485714286 | J4: =IFERROR(SUM(N4/C4),"") -> 16.5 | K4: 6 | L4: 0.07 | M4: erer | N4: 11 | O4: =IFERROR(ROUND(SUM(1000/K4),2),"") -> 166.67 | P4: =IFERROR(ROUND(SUM(N4*O4),2),"") -> 1833.37 | Q4: Black | R4: 3 | S4: السيد محمد عبد العال | T4: محمود | U4: 2000 | AJ4: 3 | AK4: Crosha F.COLLIC 1996 | AL4: 12 | AM4: 0.07 | AN4: Black&White | AO4: ابراهيم محمود ابراهيم | AP4: اسامة
D5: 00:00:00 | R5: 3 | AJ5: 4 | AK5: Crosha F.COLLIC 1997 | AL5: 10.8 | AM5: 0.08 | AN5: A prominent Black | AO5: مسعد رمزي مسعد
D6: 00:00:00 | R6: 3 | AJ6: 5 | AK6: Crosha F.COLLIC 1996 | AL6: 10.4 | AM6: 0.09 | AN6: A prominent White | AO6: عادل عزمي شنودة
D7: 00:00:00 | R7: 3 | AJ7: 6 | AK7: Crosha | AM7: 0.1 | AO7: صبحي محمد محمود
D8: 00:00:00 | R8: 3 | AJ8: 7 | AK8: Crosha | AM8: 0.11 | AO8: السيد محمد عبد العال
D9: 00:00:00 | R9: 3 | AJ9: 8 | AK9: Crosha | AM9: 0.12 | AO9: عادل سيف الله السيد
D10: 00:00:00 | R10: 3 | AJ10: 9 | AK10: Crosha | AM10: 0.13 | AO10: خالد السيد عبد القادر
D11: 00:00:00 | R11: 3 | AJ11: 10 | AK11: Crosha | AM11: 0.14 | AO11: عادل صادق بشير
D12: 00:00:00 | R12: 3 | AJ12: 11 | AK12: Crosha | AM12: 0.15 | AO12: روماني عطية حبشي
D13: 00:00:00 | R13: 3 | AJ13: 12 | AK13: Crosha | AM13: 0.16 | AO13: احمد صادق توفيق
D14: 00:00:00 | R14: 3 | AJ14: 13 | AK14: Crosha | AM14: 0.17 | AO14: دينا مجدي ابراهيم
D15: 00:00:00 | R15: 3 | AJ15: 14 | AK15: Crosha | AM15: 0.18 | AO15: علي فرج على محمد
D16: 00:00:00 | R16: 3 | AJ16: 15 | AK16: Crosha | AM16: 0.19 | AO16: بوسي السيد عبد المنعم
D17: 00:00:00 | R17: 3 | AJ17: 16 | AK17: Crosha | AM17: 0.2 | AO17: محمد محمد عبد الوهاب
D18: 00:00:00 | R18: 3 | AJ18: 17 | AK18: Crosha | AM18: 0.21 | AO18: سعيد الليثي جاب الله
D19: 00:00:00 | R19: 3 | AJ19: 18 | AK19: Crosha | AM19: 0.22 | AO19: احمد عبد الظاهر
D20: 00:00:00 | R20: 3 | AJ20: 19 | AK20: Crosha | AM20: 0.23 | AO20: مصطفى عبد النبي مصطفى
D21: 00:00:00 | R21: 3 | AJ21: 20 | AK21: Crosha | AM21: 0.24 | AO21: ابراهيم صبحي محمد السيد
D22: 00:00:00 | R22: 3 | AJ22: 21 | AK22: Crosha | AM22: 0.25 | AO22: خميس حسن حسنين
D23: 00:00:00 | R23: 3 | AJ23: 22 | AK23: Crosha | AM23: 0.26 | AO23: محمد حسني حسن
D24: 00:00:00 | R24: 3 | AJ24: 23 | AK24: Crosha | AM24: 0.27 | AO24: محمد عادل محمد محمد
D25: 00:00:00 | R25: 3 | AJ25: 24 | AK25: Crosha | AM25: 0.28 | AO25: السيد عبد الحميد اسماعيل
D26: 00:00:00 | R26: 3 | AJ26: 25 | AK26: Crosha | AM26: 0.29 | AO26: ابراهيم محمد فتوح
D27: 00:00:00 | R27: 3 | AJ27: 26 | AK27: Crosha | AM27: 0.3 | AO27: عمرو محمد عبد الجليل
D28: 00:00:00 | R28: 3 | AJ28: 27 | AK28: Crosha | AM28: 0.31 | AO28: خالد مصطفى العوضي
D29: 00:00:00 | R29: 3 | AJ29: 28 | AK29: Crosha | AM29: 0.32 | AO29: حمادة احمد على النجار
D30: 00:00:00 | R30: 3 | AJ30: 29 | AK30: Crosha | AM30: 0.33 | AO30: عاطف وليم لبيب
D31: 00:00:00 | R31: 3 | AJ31: 30 | AK31: Crosha | AM31: 0.34 | AO31: عادل وليم نبيل
D32: 00:00:00 | R32: 3 | AJ32: 31 | AK32: Crosha | AM32: 0.35 | AO32: بيشوي عزت شفيق
D33: 00:00:00 | R33: 3 | AJ33: 32 | AK33: Crosha | AM33: 0.36 | AO33: محمد يحيى محمود
D34: 00:00:00 | R34: 3 | AJ34: 33 | AK34: Crosha | AM34: 0.37 | AO34: احمد رمضان احمد
D35: 00:00:00 | R35: 3 | AJ35: 34 | AK35: Crosha | AM35: 0.38
D36: 00:00:00 | R36: 3 | AJ36: 35 | AK36: Crosha | AM36: 0.39
D37: 00:00:00 | R37: 3 | AJ37: 36 | AK37: Crosha | AM37: 0.4
D38: 00:00:00 | R38: 3 | AJ38: 37 | AK38: Crosha | AM38: 0.41
D39: 00:00:00 | R39: 3 | AJ39: 38 | AK39: Crosha | AM39: 0.42
D40: 00:00:00 | R40: 3 | AJ40: 39 | AK40: Crosha | AM40: 0.43
D41: 00:00:00 | R41: 3 | AJ41: 40 | AK41: Crosha | AM41: 0.44
D42: 00:00:00 | R42: 3 | AJ42: 41 | AK42: Crosha | AM42: 0.45
D43: 00:00:00 | R43: 3 | AJ43: 42 | AK43: Crosha | AM43: 0.46
D44: 00:00:00 | R44: 3 | AJ44: 43 | AK44: Crosha | AM44: 0.47
D45: 00:00:00 | R45: 3 | AJ45: 44 | AK45: Crosha | AM45: 0.48
D46: 00:00:00 | R46: 3 | AJ46: 45 | AK46: Crosha | AM46: 0.49
D47: 00:00:00 | R47: 3 | AJ47: 46 | AK47: Crosha | AM47: 0.5
D48: 00:00:00 | R48: 3 | AJ48: 47 | AK48: Crosha | AM48: 0.51
D49: 00:00:00 | R49: 3 | AJ49: 48 | AK49: Crosha | AM49: 0.52
D50: 00:00:00 | R50: 3 | AJ50: 49 | AK50: Crosha | AM50: 0.53
D51: 00:00:00 | R51: 3 | AJ51: 50 | AK51: Crosha | AM51: 0.54
D52: 00:00:00 | R52: 3 | AJ52: 51 | AK52: Crosha | AM52: 0.55
D53: 00:00:00 | R53: 3 | AJ53: 52 | AK53: Crosha | AM53: 0.56
D54: 00:00:00 | R54: 3 | AJ54: 53 | AK54: Crosha | AM54: 0.57
D55: 00:00:00 | R55: 3 | AJ55: 54 | AK55: Crosha | AM55: 0.58
D56: 00:00:00 | R56: 3 | AJ56: 55 | AK56: Crosha | AM56: 0.59
D57: 00:00:00 | R57: 3 | AJ57: 56 | AK57: Crosha | AM57: 0.6
D58: 00:00:00 | R58: 3 | AJ58: 57 | AK58: Crosha | AM58: 0.61
D59: 00:00:00 | R59: 3 | AJ59: 58 | AK59: Crosha | AM59: 0.62
D60: 00:00:00 | R60: 3 | AJ60: 59 | AK60: Crosha | AM60: 0.63
D61: 00:00:00 | R61: 3 | AJ61: 60 | AK61: Crosha | AM61: 0.64
D62: 00:00:00 | R62: 3 | AJ62: 61 | AK62: Crosha | AM62: 0.65
D63: 00:00:00 | R63: 3 | AJ63: 62 | AK63: Crosha | AM63: 0.66
D64: 00:00:00 | R64: 3 | AJ64: 63 | AK64: Crosha | AM64: 0.67
D65: 00:00:00 | R65: 3 | AJ65: 64 | AK65: Crosha | AM65: 0.68
D66: 00:00:00 | R66: 3 | AJ66: 65 | AK66: Crosha | AM66: 0.69
D67: 00:00:00 | R67: 3 | AJ67: 66 | AK67: Crosha | AM67: 0.7
A68: =IF(E68="","",IF(A68="",TODAY(),A68)) ->  | D68: =C68-B68+IF(B68>C68,1) -> 00:00:00 | F68: =IFERROR(VLOOKUP(E68,$AJ$2:$AL$3155,2,FALSE),"") ->  | G68: =IFERROR(VLOOKUP(E68,$AJ$2:$AL$3155,3,FALSE),"") ->  | I68: =IFERROR(SUM(G68/7),"") ->  | J68: =IFERROR(SUM(N68/C68),"") ->  | O68: =IFERROR(ROUND(SUM(1000/K68),2),"") ->  | P68: =IFERROR(ROUND(SUM(N68*O68),2),"") ->  | R68: 3 | AJ68: 67 | AK68: Crosha | AM68: 0.71
D69: 00:00:00 | R69: 3 | AJ69: 68 | AK69: Crosha | AM69: 0.72
D70: 00:00:00 | R70: 3 | AJ70: 69 | AK70: Crosha | AM70: 0.73
D71: 00:00:00 | R71: 3 | AJ71: 70 | AK71: Crosha | AM71: 0.74
D72: 00:00:00 | R72: 3 | AJ72: 71 | AK72: Crosha | AM72: 0.75
D73: 00:00:00 | R73: 3 | AJ73: 72 | AK73: Crosha | AM73: 0.76
D74: 00:00:00 | R74: 3 | AJ74: 73 | AK74: Crosha | AM74: 0.77
D75: 00:00:00 | R75: 3 | AJ75: 74 | AK75: Crosha | AM75: 0.78
D76: 00:00:00 | R76: 3 | AJ76: 75 | AK76: Crosha | AM76: 0.79
D77: 00:00:00 | R77: 3 | AJ77: 76 | AK77: Crosha | AM77: 0.8
D78: 00:00:00 | R78: 3 | AJ78: 77 | AK78: Crosha | AM78: 0.81
D79: 00:00:00 | R79: 3 | AJ79: 78 | AK79: Crosha | AM79: 0.82
D80: 00:00:00 | R80: 3 | AJ80: 79 | AK80: Crosha | AM80: 0.83
D81: 00:00:00 | R81: 3 | AJ81: 80 | AK81: Crosha | AM81: 0.84
D82: 00:00:00 | R82: 3 | AJ82: 81 | AK82: Crosha | AM82: 0.85
D83: 00:00:00 | R83: 3 | AJ83: 82 | AK83: Crosha | AM83: 0.86
D84: 00:00:00 | R84: 3 | AJ84: 83 | AK84: Crosha | AM84: 0.87
D85: 00:00:00 | R85: 3 | AJ85: 84 | AK85: Crosha | AM85: 0.88
D86: 00:00:00 | R86: 3 | AJ86: 85 | AK86: Crosha | AM86: 0.89
D87: 00:00:00 | R87: 3 | AJ87: 86 | AK87: Crosha | AM87: 0.9
D88: 00:00:00 | R88: 3 | AJ88: 87 | AK88: Crosha | AM88: 0.91
D89: 00:00:00 | R89: 3 | AJ89: 88 | AK89: Crosha | AM89: 0.92
D90: 00:00:00 | R90: 3 | AJ90: 89 | AK90: Crosha | AM90: 0.93
D91: 00:00:00 | R91: 3 | AJ91: 90 | AK91: Crosha | AM91: 0.94
D92: 00:00:00 | R92: 3 | AJ92: 91 | AK92: Crosha | AM92: 0.95
D93: 00:00:00 | R93: 3 | AJ93: 92 | AK93: Crosha | AM93: 0.96
D94: 00:00:00 | R94: 3 | AJ94: 93 | AK94: Crosha | AM94: 0.97
D95: 00:00:00 | R95: 3 | AJ95: 94 | AK95: Crosha | AM95: 0.98
D96: 00:00:00 | R96: 3 | AJ96: 95 | AK96: Crosha | AM96: 0.99
D97: 00:00:00 | R97: 3 | AJ97: 96 | AK97: Crosha | AM97: 1
D98: 00:00:00 | R98: 3 | AJ98: 97 | AK98: Crosha | AM98: 1.01
D99: 00:00:00 | R99: 3 | AJ99: 98 | AK99: Crosha | AM99: 1.02
D100: 00:00:00 | R100: 3 | AJ100: 99 | AK100: Crosha | AM100: 1.03
D101: 00:00:00 | R101: 3 | AJ101: 100 | AK101: Crosha | AM101: 1.04
D102: 00:00:00 | R102: 3 | AJ102: 101 | AK102: Jakar - MULLER 2017 | AL102: 4.46 | AM102: 1.05
D103: 00:00:00 | R103: 3 | AJ103: 102 | AK103: Jakar - MULLER 2017 | AL103: 6.78 | AM103: 1.06
D104: 00:00:00 | R104: 3 | AJ104: 103 | AK104: Jakar | AM104: 1.07
D105: 00:00:00 | R105: 3 | AJ105: 104 | AK105: Jakar | AM105: 1.08
D106: 00:00:00 | R106: 3 | AJ106: 105 | AK106: Jakar | AM106: 1.09
D107: 00:00:00 | R107: 3 | AJ107: 106 | AK107: Jakar | AM107: 1.1
D108: 00:00:00 | R108: 3 | AJ108: 107 | AK108: Jakar | AM108: 1.11
D109: 00:00:00 | R109: 3 | AJ109: 108 | AK109: Jakar | AM109: 1.12
D110: 00:00:00 | R110: 3 | AJ110: 109 | AK110: Jakar | AM110: 1.13
D111: 00:00:00 | R111: 3 | AJ111: 110 | AK111: Jakar | AM111: 1.14
D112: 00:00:00 | R112: 3 | AJ112: 111 | AK112: Jakar | AM112: 1.15
D113: 00:00:00 | R113: 3 | AJ113: 112 | AK113: Jakar | AM113: 1.16
D114: 00:00:00 | R114: 3 | AJ114: 113 | AK114: Jakar | AM114: 1.17
D115: 00:00:00 | R115: 3 | AJ115: 114 | AK115: Jakar | AM115: 1.18
D116: 00:00:00 | R116: 3 | AJ116: 115 | AK116: Jakar | AM116: 1.19
D117: 00:00:00 | R117: 3 | AJ117: 116 | AK117: Jakar | AM117: 1.2
D118: 00:00:00 | R118: 3 | AJ118: 117 | AK118: Jakar | AM118: 1.21
D119: 00:00:00 | R119: 3 | AJ119: 118 | AK119: Jakar | AM119: 1.22
D120: 00:00:00 | R120: 3 | AJ120: 119 | AK120: Jakar | AM120: 1.23
D121: 00:00:00 | R121: 3 | AJ121: 120 | AK121: Jakar | AM121: 1.24
D122: 00:00:00 | R122: 3 | AJ122: 121 | AK122: Jakar | AM122: 1.25
D123: 00:00:00 | R123: 3 | AJ123: 122 | AK123: Jakar | AM123: 1.26
D124: 00:00:00 | R124: 3 | AJ124: 123 | AK124: Jakar | AM124: 1.27
D125: 00:00:00 | R125: 3 | AJ125: 124 | AK125: Jakar | AM125: 1.28
D126: 00:00:00 | R126: 3 | AJ126: 125 | AK126: Jakar | AM126: 1.29
D127: 00:00:00 | R127: 3 | AJ127: 126 | AK127: Jakar | AM127: 1.3
D128: 00:00:00 | R128: 3 | AJ128: 127 | AK128: Jakar | AM128: 1.31
D129: 00:00:00 | R129: 3 | AJ129: 128 | AK129: Jakar | AM129: 1.32
D130: 00:00:00 | R130: 3 | AJ130: 129 | AK130: Jakar | AM130: 1.33
D131: 00:00:00 | R131: 3 | AJ131: 130 | AK131: Jakar | AM131: 1.34
A132: =IF(E132="","",IF(A132="",TODAY(),A132)) ->  | D132: =C132-B132+IF(B132>C132,1) -> 00:00:00 | F132: =IFERROR(VLOOKUP(E132,$AJ$2:$AL$3155,2,FALSE),"") ->  | G132: =IFERROR(VLOOKUP(E132,$AJ$2:$AL$3155,3,FALSE),"") ->  | I132: =IFERROR(SUM(G132/7),"") ->  | J132: =IFERROR(SUM(N132/C132),"") ->  | O132: =IFERROR(ROUND(SUM(1000/K132),2),"") ->  | P132: =IFERROR(ROUND(SUM(N132*O132),2),"") ->  | R132: 3 | AJ132: 131 | AK132: Jakar | AM132: 1.35
D133: 00:00:00 | R133: 3 | AJ133: 132 | AK133: Jakar | AM133: 1.36
D134: 00:00:00 | R134: 3 | AJ134: 133 | AK134: Jakar | AM134: 1.37
D135: 00:00:00 | R135: 3 | AJ135: 134 | AK135: Jakar | AM135: 1.38
D136: 00:00:00 | R136: 3 | AJ136: 135 | AK136: Jakar | AM136: 1.39
D137: 00:00:00 | R137: 3 | AJ137: 136 | AK137: Jakar | AM137: 1.4
D138: 00:00:00 | R138: 3 | AJ138: 137 | AK138: Jakar | AM138: 1.41
D139: 00:00:00 | R139: 3 | AJ139: 138 | AK139: Jakar | AM139: 1.42
D140: 00:00:00 | R140: 3 | AJ140: 139 | AK140: Jakar | AM140: 1.43
D141: 00:00:00 | R141: 3 | AJ141: 140 | AK141: Jakar | AM141: 1.44
D142: 00:00:00 | R142: 3 | AJ142: 141 | AK142: Jakar | AM142: 1.45
D143: 00:00:00 | R143: 3 | AJ143: 142 | AK143: Jakar | AM143: 1.46
D144: 00:00:00 | R144: 3 | AJ144: 143 | AK144: Jakar | AM144: 1.47
D145: 00:00:00 | R145: 3 | AJ145: 144 | AK145: Jakar | AM145: 1.48
D146: 00:00:00 | R146: 3 | AJ146: 145 | AK146: Jakar | AM146: 1.49
D147: 00:00:00 | R147: 3 | AJ147: 146 | AK147: Jakar | AM147: 1.5
D148: 00:00:00 | R148: 3 | AJ148: 147 | AK148: Jakar | AM148: 1.51
D149: 00:00:00 | R149: 3 | AJ149: 148 | AK149: Jakar | AM149: 1.52
D150: 00:00:00 | R150: 3 | AJ150: 149 | AK150: Jakar | AM150: 1.53
D151: 00:00:00 | R151: 3 | AJ151: 150 | AK151: Jakar | AM151: 1.54
D152: 00:00:00 | R152: 3 | AJ152: 151 | AK152: Jakar | AM152: 1.55
D153: 00:00:00 | R153: 3 | AJ153: 152 | AK153: Jakar | AM153: 1.56
D154: 00:00:00 | R154: 3 | AJ154: 153 | AK154: Jakar | AM154: 1.57
D155: 00:00:00 | R155: 3 | AJ155: 154 | AK155: Jakar | AM155: 1.58
D156: 00:00:00 | R156: 3 | AJ156: 155 | AK156: Jakar | AM156: 1.59
D157: 00:00:00 | R157: 3 | AJ157: 156 | AK157: Jakar | AM157: 1.6
D158: 00:00:00 | R158: 3 | AJ158: 157 | AK158: Jakar | AM158: 1.61
D159: 00:00:00 | R159: 3 | AJ159: 158 | AK159: Jakar | AM159: 1.62
D160: 00:00:00 | R160: 3 | AJ160: 159 | AK160: Jakar | AM160: 1.63
D161: 00:00:00 | R161: 3 | AJ161: 160 | AK161: Jakar | AM161: 1.64
D162: 00:00:00 | R162: 3 | AJ162: 161 | AK162: Jakar | AM162: 1.65
D163: 00:00:00 | R163: 3 | AJ163: 162 | AK163: Jakar | AM163: 1.66
D164: 00:00:00 | R164: 3 | AJ164: 163 | AK164: Jakar | AM164: 1.67
D165: 00:00:00 | R165: 3 | AJ165: 164 | AK165: Jakar | AM165: 1.68
D166: 00:00:00 | R166: 3 | AJ166: 165 | AK166: Jakar | AM166: 1.69
D167: 00:00:00 | R167: 3 | AJ167: 166 | AK167: Jakar | AM167: 1.7
D168: 00:00:00 | R168: 3 | AJ168: 167 | AK168: Jakar | AM168: 1.71
D169: 00:00:00 | R169: 3 | AJ169: 168 | AK169: Jakar | AM169: 1.72
D170: 00:00:00 | R170: 3 | AJ170: 169 | AK170: Jakar | AM170: 1.73
D171: 00:00:00 | R171: 3 | AJ171: 170 | AK171: Jakar | AM171: 1.74
D172: 00:00:00 | R172: 3 | AJ172: 171 | AK172: Jakar | AM172: 1.75
D173: 00:00:00 | R173: 3 | AJ173: 172 | AK173: Jakar | AM173: 1.76
D174: 00:00:00 | R174: 3 | AJ174: 173 | AK174: Jakar | AM174: 1.77
D175: 00:00:00 | R175: 3 | AJ175: 174 | AK175: Jakar | AM175: 1.78
D176: 00:00:00 | R176: 3 | AJ176: 175 | AK176: Jakar | AM176: 1.79
D177: 00:00:00 | R177: 3 | AJ177: 176 | AK177: Jakar | AM177: 1.8
D178: 00:00:00 | R178: 3 | AJ178: 177 | AK178: Jakar | AM178: 1.81
D179: 00:00:00 | R179: 3 | AJ179: 178 | AK179: Jakar | AM179: 1.82
D180: 00:00:00 | R180: 3 | AJ180: 179 | AK180: Jakar | AM180: 1.83
D181: 00:00:00 | R181: 3 | AJ181: 180 | AK181: Jakar | AM181: 1.84
D182: 00:00:00 | R182: 3 | AJ182: 181 | AK182: Jakar | AM182: 1.85
D183: 00:00:00 | R183: 3 | AJ183: 182 | AK183: Jakar | AM183: 1.86
D184: 00:00:00 | R184: 3 | AJ184: 183 | AK184: Jakar | AM184: 1.87
D185: 00:00:00 | R185: 3 | AJ185: 184 | AK185: Jakar | AM185: 1.88
D186: 00:00:00 | R186: 3 | AJ186: 185 | AK186: Jakar | AM186: 1.89
D187: 00:00:00 | R187: 3 | AJ187: 186 | AK187: Jakar | AM187: 1.9
D188: 00:00:00 | R188: 3 | AJ188: 187 | AK188: Jakar | AM188: 1.91
D189: 00:00:00 | R189: 3 | AJ189: 188 | AK189: Jakar | AM189: 1.92
D190: 00:00:00 | R190: 3 | AJ190: 189 | AK190: Jakar | AM190: 1.93
D191: 00:00:00 | R191: 3 | AJ191: 190 | AK191: Jakar | AM191: 1.94
D192: 00:00:00 | R192: 3 | AJ192: 191 | AK192: Jakar | AM192: 1.95
D193: 00:00:00 | R193: 3 | AJ193: 192 | AK193: Jakar | AM193: 1.96
D194: 00:00:00 | R194: 3 | AJ194: 193 | AK194: Jakar | AM194: 1.97
D195: 00:00:00 | R195: 3 | AJ195: 194 | AK195: Jakar | AM195: 1.98
A196: =IF(E196="","",IF(A196="",TODAY(),A196)) ->  | D196: =C196-B196+IF(B196>C196,1) -> 00:00:00 | F196: =IFERROR(VLOOKUP(E196,$AJ$2:$AL$3155,2,FALSE),"") ->  | G196: =IFERROR(VLOOKUP(E196,$AJ$2:$AL$3155,3,FALSE),"") ->  | I196: =IFERROR(SUM(G196/7),"") ->  | J196: =IFERROR(SUM(N196/C196),"") ->  | O196: =IFERROR(ROUND(SUM(1000/K196),2),"") ->  | P196: =IFERROR(ROUND(SUM(N196*O196),2),"") ->  | R196: 3 | AJ196: 195 | AK196: Jakar | AM196: 1.99
D197: 00:00:00 | R197: 3 | AJ197: 196 | AK197: Jakar | AM197: 2
D198: 00:00:00 | R198: 3 | AJ198: 197 | AK198: Jakar | AM198: 2.01
D199: 00:00:00 | R199: 3 | AJ199: 198 | AK199: Jakar | AM199: 2.02
D200: 00:00:00 | R200: 3 | AJ200: 199 | AK200: Jakar | AM200: 2.03
D201: 00:00:00 | R201: 3 | AJ201: 200 | AK201: Jakar | AM201: 2.04
... 1800 more rows

Sheet Total Prodaction By shift
A1: From Date | B1: 2019-02-18 | D1: To Date | E1: 2019-02-18 | G1: Machine No. | H1: 1 | I1: Name of the employee | L1: منصور محمد منصور | X1: From Date | Y1: 2019-02-18 | AA1: To Date | AB1: 2019-02-18 | AD1: Machine No. | AE1: 5 | AF1: Name of the employee | AI1: علي مراد حسن | AU1: From Date | AV1: 2019-02-18 | AX1: To Date | AY1: 2019-02-18 | BA1: Machine No. | BB1: 3 | BC1: Name of the employee | BF1: صبحي محمد محمود | BR1: 1 | BS1: Date | BT1: Date | BU1: Machine No. | BV1: Name of the Employee | BW1: 2 | BX1: Date | BY1: Date | BZ1: Machine No. | CA1: Name of the Employee | CB1: 3 | CC1: Date | CD1: Date | CE1: Machine No. | CF1: Name of the Employee | CH1: منصور محمد منصور
BS2: =">="&B1 -> >=43514 | BT2: ="<="&E1 -> <=43514 | BU2: =H1 -> 1 | BV2: =L1 -> منصور محمد منصور | BX2: =">="&Y1 -> >=43514 | BY2: ="<="&AB1 -> <=43514 | BZ2: =AE1 -> 5 | CA2: =AI1 -> علي مراد حسن | CC2: =">="&AV1 -> >=43514 | CD2: ="<="&AY1 -> <=43514 | CE2: =BB1 -> 3 | CF2: =BF1 -> صبحي محمد محمود | CH2: علي مراد حسن
A3: Date | B3: Start Time | C3: End Time | D3: Total | E3: Machine No. | F3: Machine Name | G3: Maximum power | H3: Production rate per Shift | I3: Average hourly output | J3: Average hourly output | K3: Gm/ML | L3: Size MM | M3: Drawing | N3: KG.\ day | O3: ML X KG. | P3: ML.\ day | Q3: Color | R3: Shift | S3: Name of the Employee | T3: Name of Supervisor | U3: OR No. | V3: Comment | X3: Date | Y3: Start Time | Z3: End Time | AA3: Total | AB3: Machine No. | AC3: Machine Name | AD3: Maximum power | AE3: Production rate per Shift | AF3: Average hourly output | AG3: Average hourly output | AH3: Gm/ML | AI3: Size MM | AJ3: Drawing | AK3: KG.\ day | AL3: ML X KG. | AM3: ML.\ day | AN3: Color | AO3: Shift | AP3: Name of the Employee | AQ3: Name of Supervisor | AR3: OR No. | AS3: Comment | AU3: Date | AV3: Start Time | AW3: End Time | AX3: Total | AY3: Machine No. | AZ3: Machine Name | BA3: Maximum power | BB3: Production rate per Shift | BC3: Average hourly output | BD3: Average hourly output | BE3: Gm/ML | BF3: Size MM | BG3: Drawing | BH3: KG.\ day | BI3: ML X KG. | BJ3: ML.\ day | BK3: Color | BL3: Shift | BM3: Name of the Employee | BN3: Name of Supervisor | BO3: OR No. | BP3: Comment | BR3: 1 | BS3: Date | BT3: Date | BU3: Name of the Employee | CH3: ابراهيم محمود ابراهيم
A4: 2019-02-18 | B4: 08:00:00 | C4: 09:00:00 | D4: 01:00:00 | E4: 1 | F4: Crosha COMEZ 2017 | G4: 17.5 | H4: 15 | I4: 2.5 | J4: 2.5 | K4: 20 | L4: 0.06 | M4: eeee | N4: 15 | O4: 50 | P4: 750 | Q4: Black | R4: 1 | S4: منصور محمد منصور | T4: محمود | U4: 2211 | V4: hhh | X4: 2019-02-18 | Y4: 08:30:00 | Z4: 16:30:00 | AA4: 08:00:00 | AB4: 5 | AC4: Crosha F.COLLIC 1996 | AD4: 7.8 | AE4: 5 | AF4: 1.114285714 | AG4: 1.114285714 | AH4: 20 | AI4: 0.07 | AJ4: uuu | AK4: 5 | AL4: 50 | AM4: 250 | AN4: A prominent White | AO4: 2 | AP4: علي مراد حسن | AQ4: اسامة | AR4: 6666 | AU4: 2019-02-18 | AV4: 11:30:00 | AW4: 15:30:00 | AX4: 04:00:00 | AY4: 3 | AZ4: Crosha F.COLLIC 1996 | BA4: 12 | BB4: 13 | BC4: 1.714285714 | BD4: 1.714285714 | BE4: 5 | BF4: 0.08 | BG4: gfd | BH4: 13 | BI4: 200 | BJ4: 2600 | BK4: White | BL4: 3 | BM4: صبحي محمد محمود | BN4: محمود | BO4: 1000 | BS4: =">="&B1 -> >=43514 | BT4: ="<="&E1 -> <=43514 | BU4: =L1 -> منصور محمد منصور | CH4: مسعد رمزي مسعد
AU5: 2019-02-18 | AV5: 09:00:00 | AW5: 16:00:00 | AX5: 07:00:00 | AY5: 5 | AZ5: Crosha F.COLLIC 1996 | BA5: 10.4 | BB5: 11 | BC5: 1.485714286 | BD5: 1.485714286 | BE5: 6 | BF5: 0.07 | BG5: erer | BH5: 11 | BI5: 166.67 | BJ5: 1833.37 | BK5: Black | BL5: 3 | BM5: السيد محمد عبد العال | BN5: محمود | BO5: 2000 | BR5: 2 | BS5: Date | BT5: Date | BU5: Name of the Employee | CH5: عادل عزمي شنودة
BS6: =">="&Y1 -> >=43514 | BT6: ="<="&AB1 -> <=43514 | BU6: =AI1 -> علي مراد حسن | CH6: صبحي محمد محمود
BR7: 3 | BS7: Date | BT7: Date | BU7: Name of the Employee | CH7: السيد محمد عبد العال
BS8: =">="&AV1 -> >=43514 | BT8: ="<="&AY1 -> <=43514 | BU8: =BF1 -> صبحي محمد محمود | CH8: عادل سيف الله السيد
CH9: خالد السيد عبد القادر
CH10: عادل صادق بشير
CH11: روماني عطية حبشي
CH12: احمد صادق توفيق
CH13: دينا مجدي ابراهيم
CH14: علي فرج على محمد
CH15: بوسي السيد عبد المنعم
CH16: محمد محمد عبد الوهاب

Sheet Sheet1

Sheet Sheet2
